fUST/lending_fUST_20250622
["ID","MTS","AMOUNT","RATE_DAILY","PERIOD"]
[366916527,1750570238918,-100057.8236798,0.00024888,2]
[366916530,1750570240244,-33445.33561659,0.00024888,2]
[366916531,1750570240254,-500.0,0.0002489,120]
[366916532,1750570240264,-24864.58350394,0.000249,2]
[366916533,1750570240442,-976.08916956,0.000249,2]
[366916537,1750570243200,-1844.04370977,0.000249,2]
[366916620,1750570246121,-334.38,0.0002489,3]
[366916622,1750570246130,-851.1,0.0002489,10]
[366916624,1750570246139,-2014.90543755,0.000249,2]
[366916647,1750570394028,152.52,0.00024658,120]
[366916649,1750570973765,180.92009,0.00013699,2]
[366916651,1750571133330,-2258.85476984,0.00019404,2]
[366916652,1750571153108,-2741.14523016,0.00019404,2]
[366916653,1750571153129,-216.2184023,0.00019817,2]
[366916654,1750571153152,-180.92009,0.00020187,2]
[366916655,1750571153174,-210.73272433,0.00020199,2]
[366916658,1750571234123,387.8026932,0.000189,2]
[366916659,1750571245080,-665.22559954,0.00019997,2]
[366916660,1750571245129,-4334.77440046,0.00019997,2]
[366916661,1750571245151,-300.0,0.00020199,2]
[366916662,1750571245175,-300.0,0.00020199,2]
[366916663,1750571245197,-1356.92690603,0.000202,2]
[366916664,1750571251235,-389.44737493,0.000202,2]
[366916665,1750571301403,308.5351288,0.000189,2]
[366916667,1750571322011,188.21214715,0.00018971,2]
[366916669,1750571353284,-300.0,0.00019968,2]
[366916670,1750571353304,-29640.6342214,0.00019969,2]
[366916671,1750571353326,-5000.0,0.00019998,2]
[366916672,1750571353346,-950.0,0.00019998,2]
[366916673,1750571353367,-5295.94571904,0.000202,2]
[366916674,1750571353386,-640.8504978,0.00020722,2]
[366916675,1750571353407,-368.68966373,0.00021051,2]
[366916676,1750571353426,-503.67086843,0.00021051,2]
[366916677,1750571353446,-500.0,0.00021051,2]
[366916678,1750571353467,-500.0,0.00021051,2]
[366916679,1750571353489,-500.0,0.00021051,2]
[366916680,1750571353509,-500.0,0.00021051,2]
[366916681,1750571353532,-234.91045019,0.00021051,2]
[366916682,1750571353554,-458.0,0.00021051,2]
[366916683,1750571353576,-500.0,0.00021051,2]
[366916684,1750571353597,-500.0,0.00021051,2]
[366916685,1750571353618,-500.0,0.00021051,2]
[366916686,1750571353638,-500.0,0.00021051,2]
[366916687,1750571353659,-500.0,0.00021051,2]
[366916688,1750571353800,-500.0,0.00021051,2]
[366916689,1750571353823,-500.0,0.00021051,2]
[366916690,1750571353843,-592.11496226,0.00021051,2]
[366916691,1750571353865,-500.0,0.00021051,2]
[366916692,1750571353887,-300.0,0.00021051,2]
[366916693,1750571353908,-500.0,0.00021051,2]
[366916694,1750571353931,-201.55132777,0.00021051,2]
[366916695,1750571353952,-500.0,0.00021051,2]
[366916696,1750571353976,-500.0,0.00021051,2]
[366916697,1750571353997,-500.0,0.00021051,2]
[366916698,1750571354019,-500.0,0.00021051,2]
[366916699,1750571354040,-500.0,0.00021051,2]
[366916700,1750571354061,-500.0,0.00021051,2]
[366916701,1750571354083,-500.0,0.00021051,2]
[366916702,1750571354105,-500.0,0.00021051,2]
[366916703,1750571354129,-500.0,0.00021051,2]
[366916704,1750571354150,-500.0,0.00021051,2]
[366916705,1750571354172,-500.0,0.00021051,2]
[366916706,1750571354193,-500.0,0.00021051,2]
[366916707,1750571354213,-37060.93417184,0.00021052,2]
[366916708,1750571354236,-300.0,0.00021052,2]
[366916709,1750571354256,-339.489,0.00021054,2]
[366916710,1750571354277,-18516.2669117,0.00021055,2]
[366916711,1750571354298,-331.25059953,0.00021073,2]
[366916712,1750571354317,-500.0,0.00021073,2]
[366916713,1750571354336,-617.99211182,0.00021073,2]
[366916714,1750571354355,-500.0,0.00021073,2]
[366916715,1750571354382,-430.86785777,0.000215,5]
[366916716,1750571354409,-430.86785777,0.000215,5]
[366916717,1750571354437,-430.86785777,0.000215,5]
[366916718,1750571354464,-430.86785777,0.000215,5]
[366916719,1750571354484,-500.0,0.000215,5]
[366916720,1750571354512,-430.86785777,0.0002159,5]
[366916721,1750571354531,-1000.0,0.00021621,2]
[366916722,1750571354552,-485.7866772,0.00021661,2]
[366916723,1750571354572,-420.0,0.00021744,2]
[366916724,1750571354600,-430.86785777,0.00021762,5]
[366916725,1750571354622,-500.0,0.00021774,5]
[366916726,1750571354643,-617.7922589,0.00021879,2]
[366916727,1750571354667,-460.0,0.00021917,2]
[366916728,1750571354690,-244.43,0.00021917,2]
[366916729,1750571354712,-467.41876538,0.00021917,2]
[366916730,1750571354735,-460.0,0.00021917,2]
[366916731,1750571354756,-463.86309918,0.00021917,2]
[366916732,1750571354775,-199.36702135,0.00021918,2]
[366916733,1750571354804,-430.86785777,0.00021934,6]
[366916734,1750571354824,-351.64951637,0.00022048,5]
[366916735,1750571354843,-502.75838735,0.00022086,2]
[366916736,1750571354870,-430.86785777,0.00022107,6]
[366916737,1750571354890,-485.78667713,0.0002219,2]
[366916738,1750571354918,-430.86785777,0.00022279,6]
[366916739,1750571354946,-430.86785777,0.00022452,7]
[366916740,1750571354966,-1040.43,0.000225,7]
[366916741,1750571354986,-460.0,0.00022569,2]
[366916742,1750571355006,-41.8340906,0.00022569,2]
[366916743,1750571355032,-561.4559094,0.00022569,2]
[366916744,1750571355053,-235.10590754,0.00022569,2]
[366916745,1750571355081,-430.86785777,0.00022624,7]
[366916746,1750571355101,-485.78667713,0.00022718,2]
[366916747,1750571355124,-500.0,0.00022773,7]
[366916748,1750571355152,-430.86785777,0.00022797,7]
[366916749,1750571355174,-420.0,0.00022898,2]
[366916750,1750571368423,5000.0,0.00022769,2]
[366916751,1750571383697,5000.0,0.00022769,2]
[366916752,1750571398962,5000.0,0.00022769,2]
[366916753,1750571405463,460.0,0.00021917,2]
[366916754,1750571405729,460.0,0.00021917,2]
[366916755,1750571405988,310.88817846,0.00021917,2]
[366916756,1750571414894,963.14690525,0.00022739,2]
[366916757,1750571431168,578.15,0.00021917,2]
[366916758,1750571431403,578.15,0.00021917,2]
[366916759,1750571431653,578.15,0.00021917,2]
[366916762,1750571431989,578.15,0.00021917,2]
[366916770,1750571432178,578.15,0.00021917,2]
[366916787,1750571432341,-430.86785777,0.00022969,8]
[366916789,1750571432350,-160.0,0.00022999,2]
[366916791,1750571432359,-160.0,0.00023,2]
[366916793,1750571432369,-160.0,0.00023,2]
[366916795,1750571432379,-213.59462818,0.00023,2]
[366916797,1750571432388,-846.39664074,0.00023,2]
[366916799,1750571432398,-160.0,0.00023,2]
[366916801,1750571432407,-160.0,0.00023,2]
[366916803,1750571432417,-160.0,0.00023,2]
[366916805,1750571432426,-483.11937366,0.00023001,2]
[366916807,1750571432436,-471.42310715,0.00023001,2]
[366916809,1750571432445,-465.98472834,0.00023001,2]
[366916811,1750571432455,-460.0,0.00023001,2]
[366916813,1750571432464,-460.0,0.00023001,2]
[366916815,1750571432473,-460.0,0.00023001,2]
[366916817,1750571432482,-554.17,0.00023001,2]
[366916818,1750571432492,-461.22,0.00023001,2]
[366916820,1750571432502,-230.14598372,0.00023001,2]
[366916822,1750571432511,-160.0,0.00023001,2]
[366916824,1750571432520,-9240.7921239,0.00023001,2]
[366916830,1750571432569,-43.27193055,0.00023001,2]
[366916833,1750571432593,500.0,0.00022773,2]
[366916837,1750571432625,-3267.46416154,0.00023001,2]
[366916839,1750571432634,-425.01221603,0.00023001,2]
[366916841,1750571432643,-836.56272071,0.00023001,2]
[366916843,1750571432653,-160.0,0.00023001,2]
[366916845,1750571432663,-500.0,0.00023073,2]
[366916847,1750571432672,-639.06115191,0.00023073,2]
[366916849,1750571432681,-21535.40754118,0.00023088,2]
[366916851,1750571432691,-1206.00130259,0.00023088,2]
[366916852,1750571432700,-207.4,0.00023088,2]
[366916853,1750571432709,-220.46186055,0.00023098,2]
[366916854,1750571432718,-430.86785777,0.00023141,8]
[366916855,1750571432728,-500.0,0.000232,2]
[366916856,1750571432737,-500.0,0.000232,2]
[366916857,1750571432747,-600.0,0.000232,2]
[366916858,1750571432756,-500.0,0.000232,2]
[366916859,1750571432766,-506.45617297,0.000232,2]
[366916860,1750571432776,-371.38,0.00023206,2]
[366916861,1750571432785,-485.78667713,0.00023247,2]
[366916862,1750571432794,-430.86785777,0.00023314,9]
[366916863,1750571432805,-430.86785777,0.00023486,9]
[366916864,1750571432813,-430.86785777,0.00023659,9]
[366916865,1750571432825,-370.44,0.00023684,3]
[366916866,1750571432835,-185.22,0.00023684,3]
[366916867,1750571432844,-555.67,0.00023684,3]
[366916868,1750571432854,-489.48496678,0.00023748,2]
[366916869,1750571432863,-1000.0,0.00023748,2]
[366916870,1750571432873,-1200.0,0.00023748,2]
[366916871,1750571432883,-1000.0,0.00023748,2]
[366916872,1750571432893,-485.78667713,0.00023776,2]
[366916873,1750571432902,-430.86785777,0.00023831,10]
[366916874,1750571432911,-308.5351288,0.000239,2]
[366916875,1750571432920,-524.02598587,0.00024,3]
[366916876,1750571432930,-524.02598587,0.00024,3]
[366916877,1750571432939,-430.86785777,0.00024003,10]
[366916878,1750571432949,-500.0,0.00024125,2]
[366916879,1750571432960,-500.0,0.00024125,2]
[366916880,1750571432970,-500.0,0.00024125,2]
[366916881,1750571432979,-500.0,0.00024125,2]
[366916882,1750571432989,-500.0,0.00024125,2]
[366916883,1750571432998,-500.0,0.00024125,2]
[366916884,1750571433007,-430.86785777,0.00024176,10]
[366916885,1750571433017,-1143.82,0.00024236,2]
[366916886,1750571433026,-352.23563619,0.0002429,2]
[366916887,1750571433036,-500.0,0.00024295,2]
[366916888,1750571433046,-500.0,0.00024295,2]
[366916889,1750571433057,-500.0,0.00024295,2]
[366916890,1750571433068,-512.12192028,0.00024296,2]
[366916891,1750571433078,-1800.0,0.00024296,2]
[366916892,1750571433088,-1500.0,0.00024296,2]
[366916893,1750571433098,-922.4,0.000243,7]
[366916894,1750571433107,-485.78667713,0.00024305,2]
[366916895,1750571433117,-430.86785777,0.00024348,11]
[366916896,1750571433127,-500.0,0.0002445,2]
[366916897,1750571433137,-215.0738,0.00024457,2]
[366916898,1750571433150,-430.86785777,0.00024521,11]
[366916899,1750571433160,-352.23563619,0.00024527,2]
[366916900,1750571433170,-276.8292444,0.00024658,2]
[366916901,1750571433180,-1000.0,0.00024673,2]
[366916902,1750571433191,-1000.0,0.00024673,2]
[366916903,1750571433201,-500.26499433,0.00024673,2]
[366916904,1750571433211,-1000.0,0.00024673,2]
[366916905,1750571433223,-419.79806781,0.00024673,2]
[366916906,1750571433233,-514.64714677,0.00024673,2]
[366916907,1750571433243,-430.86785777,0.00024693,11]
[366916908,1750571433253,-151.0,0.000248,7]
[366916909,1750571433263,-3501.82104606,0.000248,2]
[366916910,1750571433272,-485.78667713,0.00024833,2]
[366916911,1750571433282,-2400.0,0.00024844,2]
[366916912,1750571433292,-350.0,0.00024858,120]
[366916913,1750571433302,-350.0,0.0002486,120]
[366916914,1750571433311,-430.86785777,0.00024866,12]
[366916915,1750571433321,-350.0,0.00024868,120]
[366916916,1750571433330,-350.0,0.0002487,120]
[366916917,1750571433341,-500.0,0.00024873,2]
[366916918,1750571433351,-500.0,0.00024873,2]
[366916919,1750571433361,-500.0,0.00024873,2]
[366916920,1750571433371,-500.0,0.00024873,2]
[366916921,1750571433380,-500.0,0.00024873,2]
[366916922,1750571433390,-500.0,0.00024873,2]
[366916923,1750571433399,-306.51298901,0.00024873,2]
[366916924,1750571433409,-500.0,0.00024873,2]
[366916925,1750571433419,-500.0,0.00024873,2]
[366916926,1750571433428,-500.0,0.00024873,2]
[366916927,1750571433438,-500.0,0.00024873,2]
[366916928,1750571433448,-500.0,0.00024873,2]
[366916929,1750571433458,-500.0,0.00024873,2]
[366916930,1750571433469,-500.0,0.00024873,2]
[366916931,1750571433479,-500.0,0.00024873,2]
[366916932,1750571433488,-500.0,0.00024873,2]
[366916933,1750571433498,-572.65719786,0.00024873,2]
[366916934,1750571433510,-381.78289368,0.00024873,2]
[366916935,1750571433519,-500.0,0.00024873,2]
[366916936,1750571433529,-500.0,0.00024873,2]
[366916937,1750571433540,-303.15359547,0.00024873,2]
[366916938,1750571433550,-500.0,0.00024873,2]
[366916939,1750571433560,-350.0,0.00024878,120]
[366916940,1750571433570,-350.0,0.0002488,120]
[366916941,1750571433580,-160.0,0.00024887,2]
[366916942,1750571433590,-1167.27368202,0.00024889,2]
[366916943,1750571433600,-9670.52928419,0.0002489,2]
[366916944,1750571433630,578.15,0.00021917,2]
[366916945,1750571433689,-153.77506844,0.00024295,2]
[366916946,1750571433699,-500.0,0.00024295,2]
[366916947,1750571433709,-272.37484092,0.00024295,2]
[366916948,1750571433719,-500.0,0.00024295,2]
[366916949,1750571433729,-500.0,0.00024295,2]
[366916950,1750571433739,-2002.20753601,0.0002489,2]
[366916951,1750571433750,-10684.39216824,0.000249,2]
[366916952,1750571433760,-7089.20501161,0.000249,2]
[366916953,1750571433770,-30537.90254982,0.000249,2]
[366916978,1750571438240,-578.15,0.00022999,2]
[366916980,1750571438250,-578.15,0.00023,2]
[366916982,1750571438260,-200.0,0.00023,2]
[366916984,1750571438269,-578.15,0.00023087,2]
[366916986,1750571438279,-500.0,0.00023321,2]
[366916988,1750571438289,-578.15,0.00023747,2]
[366916990,1750571438298,-500.0,0.00023869,2]
[366916991,1750571438308,-500.0,0.00024295,2]
[366916993,1750571438318,-500.0,0.00024295,2]
[366916995,1750571438328,-500.0,0.00024295,2]
[366916998,1750571438337,-500.0,0.00024295,2]
[366917000,1750571438347,-233.05442066,0.00024295,2]
[366917002,1750571438359,-266.94557934,0.00024295,2]
[366917004,1750571438370,-234.62012679,0.00024295,2]
[366917560,1750571444090,-176.90166247,0.00023,2]
[366917562,1750571444100,-485.06756202,0.00023,2]
[366917569,1750571444156,-14.93243798,0.00023,2]
[366917571,1750571444166,-466.83903642,0.00023,2]
[366917573,1750571444175,-500.0,0.00024295,2]
[366917575,1750571444187,-343.52987321,0.00024295,2]
[366917577,1750571444196,-578.15,0.00024843,2]
[366917588,1750571444299,-578.15,0.00024889,2]
[366917590,1750571444310,-3.7783241,0.00024899,2]
[366917603,1750571444428,-372.11293853,0.00024899,2]
[366919225,1750571517577,6006.0,0.00023,30]
[366919226,1750571535039,152.84504294,0.000228,2]
[366919228,1750572078312,190.993698,0.00013699,2]
[366919229,1750572093648,150.5,0.0002449,120]
[366919230,1750572094104,150.5,0.0002448,120]
[366919231,1750572094523,296.02,0.0002447,120]
[366919233,1750572214749,971.12,0.00024658,120]
[366919234,1750572215918,754.0,0.00024658,120]
[366919235,1750572234240,1280.0,0.00024658,120]
[366919238,1750572259355,816.68,0.00024658,120]
[366919239,1750572287327,816.68,0.00024658,120]
[366919240,1750572348122,-150.26498568,0.00019986,2]
[366919241,1750572348145,-190.993698,0.00020187,2]
[366919242,1750572348167,-5594.06198481,0.000202,2]
[366919243,1750572348190,-298.5577709,0.00020677,2]
[366919244,1750572348211,-160.808104,0.00020695,2]
[366919245,1750572348232,-696.59637771,0.00020978,2]
[366919246,1750572431076,-503.40362229,0.00020978,2]
[366919247,1750572431099,-1641.21281347,0.00020979,2]
[366919248,1750572431122,-173.2554744,0.00021128,2]
[366919249,1750572431144,-300.0,0.00021478,2]
[366919250,1750572431166,-300.0,0.00021478,2]
[366919251,1750572431188,-759.7459305,0.00021479,2]
[366919252,1750572433136,-1540.96341063,0.00021479,2]
[366919253,1750572440074,-2373.23399551,0.00021479,2]
[366919254,1750572440121,-11100.10151653,0.00021479,2]
[366919255,1750572440142,-300.0,0.00021479,2]
[366919256,1750572440162,-300.0,0.00021479,2]
[366919257,1750572440183,-500.0,0.0002148,2]
[366919258,1750572440204,-394.06020234,0.0002148,2]
[366919259,1750572440226,-318.2768055,0.00021589,2]
[366919260,1750572440255,-338.02048839,0.000219,6]
[366919261,1750572440278,-317.77003678,0.00021913,2]
[366919262,1750572440300,-500.0,0.00021913,2]
[366919263,1750572440322,-500.0,0.00021913,2]
[366919264,1750572440342,-177.55667914,0.00021913,2]
[366919265,1750572440363,-307.66851386,0.00021913,2]
[366919266,1750572440384,-377.1471811,0.00021913,2]
[366919267,1750572440406,-168.68018,0.00021913,2]
[366919268,1750572440428,-500.0,0.00021913,2]
[366919269,1750572440455,-443.72232305,0.00021913,2]
[366919270,1750572440477,-356.161,0.00021915,2]
[366919271,1750572440500,-511.75445713,0.00021917,2]
[366919272,1750572440522,-472.70844607,0.00021917,2]
[366919273,1750572440544,-460.0,0.00021917,2]
[366919274,1750572440566,-473.83266283,0.00021917,2]
[366919275,1750572440587,-464.89586248,0.00021917,2]
[366919276,1750572440610,-752.07,0.00021917,2]
[366919277,1750572440631,-460.0,0.00021917,2]
[366919278,1750572440653,-460.0,0.00021917,2]
[366919279,1750572440675,-460.0,0.00021917,2]
[366919280,1750572440698,-460.0,0.00021917,2]
[366919281,1750572440719,-460.0,0.00021917,2]
[366919282,1750572440741,-460.0,0.00021917,2]
[366919283,1750572440762,-473.02894936,0.00021917,2]
[366919284,1750572440783,-390.83680144,0.00021917,2]
[366919285,1750572440804,-1575.45,0.00021917,2]
[366919286,1750572440825,-1575.45,0.00021917,2]
[366919287,1750572440845,-1575.45,0.00021917,2]
[366919288,1750572440867,-1575.45,0.00021917,2]
[366919289,1750572440888,-1575.45,0.00021917,2]
[366919290,1750572440909,-1575.45,0.00021917,2]
[366919291,1750572440933,-460.0,0.00021917,2]
[366919292,1750572440954,-463.45030882,0.00021917,2]
[366919293,1750572440975,-460.0,0.00021917,2]
[366919294,1750572440996,-460.0,0.00021917,2]
[366919295,1750572441017,-500.0,0.00021917,2]
[366919296,1750572441038,-500.0,0.00021917,2]
[366919297,1750572441058,-500.0,0.00021917,2]
[366919298,1750572441079,-500.0,0.00021917,2]
[366919299,1750572441101,-500.0,0.00021917,2]
[366919300,1750572441124,-500.0,0.00021917,2]
[366919301,1750572441145,-460.0,0.00021917,2]
[366919302,1750572441168,-500.0,0.00021917,2]
[366919303,1750572441190,-479.96259521,0.00021917,2]
[366919304,1750572441213,-438.56623784,0.00021917,2]
[366919305,1750572441237,-460.0,0.00021917,2]
[366919306,1750572441259,-460.0,0.00021917,2]
[366919307,1750572441282,-500.32667658,0.00021917,2]
[366919308,1750572441305,-499.44767067,0.00021917,2]
[366919309,1750572441326,-515.45271842,0.00021917,2]
[366919310,1750572441348,-467.69433871,0.00021917,2]
[366919311,1750572441370,-460.0,0.00021917,2]
[366919312,1750572441392,-460.0,0.00021917,2]
[366919313,1750572441414,-460.0,0.00021917,2]
[366919314,1750572441436,-388.88876841,0.00021917,2]
[366919315,1750572441462,-471.95853531,0.00021917,2]
[366919316,1750572441485,-460.0,0.00021917,2]
[366919317,1750572441508,-460.0,0.00021917,2]
[366919318,1750572441540,-460.0,0.00021917,2]
[366919319,1750572441567,-460.0,0.00021917,2]
[366919320,1750572441599,-338.02048835,0.00022038,6]
[366919321,1750572441631,-338.02048835,0.00022176,6]
[366919322,1750572441663,-338.02048835,0.00022314,7]
[366919323,1750572441684,-500.0,0.00022409,2]
[366919324,1750572441705,-500.0,0.00022409,2]
[366919325,1750572441725,-500.0,0.00022409,2]
[366919326,1750572441746,-505.36277811,0.00022409,2]
[366919327,1750572441767,-504.55540538,0.0002243,2]
[366919328,1750572441797,-338.02048835,0.00022452,7]
[366919329,1750572441819,-150.0,0.00022558,2]
[366919330,1750572441841,-313.52608894,0.00022568,2]
[366919331,1750572441863,-208.46621848,0.00022568,2]
[366919332,1750572441884,-460.0,0.00022568,2]
[366919333,1750572441907,-460.0,0.00022568,2]
[366919334,1750572441936,-338.02048835,0.0002259,7]
[366919335,1750572441966,-338.02048835,0.00022728,7]
[366919336,1750572441988,-160.0,0.00022773,2]
[366919337,1750572442114,-338.02048835,0.00022866,8]
[366919338,1750572442137,-182.155054,0.00022922,2]
[366919339,1750572442160,-216.0,0.00022928,2]
[366919340,1750572442183,-998.20010244,0.00022937,2]
[366919341,1750572442204,-538.50207534,0.00022957,2]
[366919342,1750572442225,-1000.0,0.00022957,2]
[366919343,1750572442249,-460.0,0.00022964,2]
[366919344,1750572442273,-460.0,0.00022964,2]
[366919345,1750572442294,-160.0,0.00022965,2]
[366919346,1750572442316,-12551.52821599,0.00022965,2]
[366919347,1750572442336,-160.0,0.00022965,2]
[366919348,1750572442357,-425.01221603,0.00022965,2]
[366919349,1750572442378,-160.0,0.00022965,2]
[366919350,1750572442399,-160.0,0.00022965,2]
[366919351,1750572442419,-160.0,0.00022979,2]
[366919352,1750572442443,-292.6381017,0.00022999,2]
[366919353,1750572442463,-1575.45,0.00022999,2]
[366919354,1750572442485,-460.0,0.00022999,2]
[366919355,1750572442505,-160.0,0.00022999,2]
[366919356,1750572442531,-230.14598372,0.00022999,2]
[366919357,1750572442552,-160.0,0.00022999,2]
[366919358,1750572442573,-836.56272071,0.00022999,2]
[366919359,1750572442594,-1575.45,0.00023,2]
[366919360,1750572442625,-338.02048835,0.00023003,8]
[366919361,1750572442646,-460.0,0.00023081,2]
[366919362,1750572442668,-752.07,0.00023081,2]
[366919363,1750572442692,-460.0,0.00023081,2]
[366919364,1750572442715,-460.0,0.00023081,2]
[366919365,1750572442739,-441.48058436,0.00023081,2]
[366919367,1750572545099,-150.0,0.00020899,2]
[366919368,1750572545120,-460.0,0.00021917,2]
[366919369,1750572545140,-460.0,0.00021917,2]
[366919370,1750572545159,-460.0,0.00021917,2]
[366919371,1750572545180,-469.74783591,0.00021917,2]
[366919372,1750572545202,-460.0,0.00021917,2]
[366919373,1750572545225,-245.71909059,0.00021917,2]
[366919374,1750572545252,-214.28090941,0.00021917,2]
[366919375,1750572545275,-460.0,0.00021917,2]
[366919376,1750572545444,-276.21,0.00021917,2]
[366919377,1750572545468,-376.24680135,0.00021917,2]
[366919378,1750572545493,-460.0,0.00021917,2]
[366919379,1750572545514,-460.0,0.00021917,2]
[366919380,1750572545535,-460.0,0.00021917,2]
[366919381,1750572545557,-392.08949927,0.00021917,2]
[366919382,1750572545578,-460.0,0.00021917,2]
[366919383,1750572545598,-460.0,0.00021917,2]
[366919384,1750572545618,-460.0,0.00021917,2]
[366919385,1750572545637,-460.0,0.00021917,2]
[366919386,1750572545656,-424.93076293,0.00021917,2]
[366919387,1750572545677,-460.0,0.00021917,2]
[366919388,1750572545696,-471.53520269,0.00021917,2]
[366919389,1750572545718,-460.0,0.00021917,2]
[366919390,1750572545738,-434.94252863,0.00021917,2]
[366919391,1750572545758,-460.0,0.00021917,2]
[366919392,1750572545778,-479.02216204,0.00021917,2]
[366919393,1750572545798,-388.94173507,0.00021917,2]
[366919394,1750572545818,-471.5733309,0.00021917,2]
[366919395,1750572545839,-500.0,0.00021917,2]
[366919396,1750572545858,-500.0,0.00021917,2]
[366919397,1750572545878,-460.0,0.00021917,2]
[366919398,1750572545899,-482.98215781,0.00021917,2]
[366919399,1750572545919,-444.99071206,0.00021917,2]
[366919400,1750572545941,-500.0,0.0002243,2]
[366919401,1750572545960,-502.72128038,0.0002243,2]
[366919402,1750572545986,-460.0,0.00022568,2]
[366919403,1750572546007,-460.0,0.00022568,2]
[366919404,1750572546029,-522.27119363,0.00022568,2]
[366919405,1750572546049,-479.09996853,0.00022568,2]
[366919406,1750572546072,-460.0,0.00022568,2]
[366919407,1750572546092,-142.65744781,0.00022773,2]
[366919410,1750572570130,-573.39148769,0.00021917,2]
[366919411,1750572570151,-464.80680263,0.00021917,2]
[366919412,1750572570173,-460.0,0.00021917,2]
[366919413,1750572570196,-460.0,0.00021917,2]
[366919414,1750572570219,-460.0,0.00021917,2]
[366919415,1750572570240,-495.50610393,0.00021917,2]
[366919416,1750572570262,-473.72314246,0.00021917,2]
[366919417,1750572572076,-460.0,0.00022772,2]
[366919418,1750572572097,-317.34255219,0.00022773,2]
[366919419,1750572572129,-202.65744781,0.000229,8]
[366919420,1750572573310,460.0,0.00021917,2]
[366919421,1750572575114,355.98846329,0.00021917,2]
[366919422,1750572592497,943.89296031,0.00021698,2]
[366919459,1750572632386,-1159.67916007,0.00021698,2]
[366919461,1750572632398,-716.86554916,0.00021698,2]
[366919467,1750572632558,-2179.56233046,0.00021698,2]
[366919468,1750572632569,-104.01153671,0.00021917,2]
[366919469,1750572632579,-486.77656515,0.00021917,2]
[366919470,1750572632589,-489.6611367,0.00021917,2]
[366919471,1750572632598,-156.65031373,0.00021917,2]
[366919472,1750572632608,-460.0,0.00021917,2]
[366919473,1750572632617,-473.71082291,0.00021917,2]
[366919474,1750572632627,-460.0,0.00022568,2]
[366919475,1750572632637,-33.95689418,0.000229,8]
[366919476,1750572632646,-300.0,0.00022963,2]
[366919477,1750572632655,-460.0,0.00022964,2]
[366919478,1750572632665,-460.0,0.00022964,2]
[366919479,1750572632674,-500.0,0.00022964,2]
[366919480,1750572632684,-160.0,0.00022965,2]
[366919482,1750572632693,-425.01221603,0.00022965,2]
[366919483,1750572632703,-230.14598372,0.00022965,2]
[366919484,1750572632712,-160.0,0.00022965,2]
[366919485,1750572632722,-836.56272071,0.00022965,2]
[366919486,1750572632732,-1000.0,0.00022978,2]
[366919487,1750572632741,-460.0,0.00022998,2]
[366919488,1750572632750,-460.0,0.00023001,2]
[366919489,1750572632759,-236.61434184,0.00023003,8]
[366919490,1750572632769,-58.51941564,0.00023081,2]
[366919491,1750572632778,-490.93393285,0.00023081,2]
[366919492,1750572632787,-204.89272876,0.00023081,2]
[366919493,1750572632796,-460.0,0.00023081,2]
[366919494,1750572632806,-460.0,0.00023081,2]
[366919495,1750572632815,-460.0,0.00023081,2]
[366919496,1750572632824,-1575.45,0.00023087,2]
[366919497,1750572632834,-460.0,0.00023087,2]
[366919498,1750572632843,-236.61434184,0.00023107,8]
[366919499,1750572632852,-236.61434184,0.0002321,8]
[366919500,1750572632862,-236.61434184,0.00023314,9]